[Event "XVIII La Palma-ch 2019"]
[Site "La Palma"]
[Date "2019.04.02"]
[Round "7.8"]
[White "Martin Rodriguez, Jose Carlos"]
[Black "Bethencourt Hernandez, Valeria"]
[Result "1-0"]
[ECO "C41"]
[WhiteElo "1761"]
[BlackElo "1239"]
[Annotator "NA RC"]
[PlyCount "117"]
[EventDate "2019.03.29"]
[EventType "swiss"]
[EventCountry "ESP"]
[SourceTitle "playchess.com"]
[Source "ChessBase"]
[SourceQuality "1"]
[TimeControl "5400+30"]

1. e4 {[%emt 0:00:00]} e5 {[%emt 0:01:12]} 2. Nf3 {[%emt 0:00:03]} Nf6 {[%emt 0:02:29]} 3. Nc3 {[%emt 0:00:05]} d6 {[%emt 0:04:26]} 4. Bc4 {[%emt 0:01:20]} Be7 {[%emt 0:05:06]} 5. d4 {[%emt 0:03:55]} Bg4 {[%emt 0:07:12]} 6. h3 {[%emt 0:14:10]} exd4 {[%emt 0:08:06]} 7. Qxd4 {[%emt 0:00:12]} Nc6 {[%emt 0:01:38]} 8. Qd2 {[%emt 0:01:45]} Ne5 {[%emt 0:02:55]} 9. Nxe5 {[%emt 0:02:20]} dxe5 {[%emt 0:01:52]} 10. hxg4 {[%emt 0:00:10]} Nxg4 {[%emt 0:01:17]} 11. Qe2 {[%emt 0:00:30]} Nf6 {[%emt 0:05:27]} 12. Bg5 {[%emt 0:04:15]} Nd7 {[%emt 0:03:25]} 13. Bxe7 {[%emt 0:00:37]} Qxe7 {[%emt 0:00:10]} 14. Rd1 {[%emt 0:00:32]} O-O-O {[%emt 0:12:04]} 15. Rd5 {[%emt 0:01:59]} Qg5 {[%emt 0:08:07]} 16. O-O {[%emt 0:03:25]} h5 {[%emt 0:02:37]} 17. Qe3 {[%emt 0:01:53]} Qxe3 {[%emt 0:03:14]} 18. fxe3 {[%emt 0:02:05]} f6 {[%emt 0:01:21]} 19. Rfd1 {[%emt 0:00:42]} h4 20. Be2 {[%emt 0:00:09]} c6 {[%emt 0:06:44]} 21. Rd6 {[%emt 0:01:28]} Kc7 {[%emt 0:00:21]} 22. Bg4 {[%emt 0:00:24]} Nb6 {[%emt 0:01:33]} 23. Rxd8 {[%emt 0:00:11]} Rxd8 {[%emt 0:00:02]} 24. Rxd8 {[%emt 0:00:30]} Kxd8 {[%emt 0:00:30]} 25. b3 {[%emt 0:00:00]} Na8 {[%emt 0:05:53]} 26. Kf2 {[%emt 0:00:07]} Nc7 {[%emt 0:00:15]} 27. a3 {[%emt 0:01:23]} b6 {[%emt 0:01:57]} 28. Ke2 {[%emt 0:01:14]} Ke7 {[%emt 0:00:43]} 29. Kd2 {[%emt 0:00:11]} Ne8 {[%emt 0:00:47]} 30. Ne2 {[%emt 0:00:46]} Nd6 {[%emt 0:00:27]} 31. Nc3 {[%emt 0:00:25]} Nf7 {[%emt 0:01:57]} 32. Ke2 {[%emt 0:00:51]} Nd6 {[%emt 0:01:03]} 33. Kf2 {[%emt 0:00:32]} g6 {[%emt 0:00:59]} 34. Bf3 {[%emt 0:00:16]} Kf7 {[%emt 0:01:46]} 35. Kg1 {[%emt 0:00:30]} Kg7 {[%emt 0:00:18]} 36. Kh2 {[%emt 0:00:25]} Kh6 {[%emt 0:00:56]} 37. Be2 {[%emt 0:01:57]} f5 {[%emt 0:01:22]} 38. Bf3 {[%emt 0:04:40]} c5 {[%emt 0:01:45]} 39. a4 {[%emt 0:00:50]} Kg5 {[%emt 0:00:36]} 40. Kg1 {[%emt 0:01:11]} Kf6 {[%emt 0:03:15]} 41. Kf2 {[%emt 0:00:46]} Ke6 {[%emt 0:01:11]} 42. Ke1 {[%emt 0:00:45]} Kd7 {[%emt 0:01:56]} 43. Nd5 {[%emt 0:00:22]} Ke6 {[%emt 0:00:41]} 44. exf5+ {[%emt 0:00:45]} gxf5 {[%emt 0:00:50]} 45. Nc7+ {[%emt 0:00:10]} Kf6 {[%emt 0:01:18]} 46. Nb5 {[%emt 0:00:06]} Nxb5 {[%emt 0:00:03]} 47. axb5 {[%emt 0:00:30]} f4 {[%emt 0:00:30]} 48. Ke2 {[%emt 0:00:21]} Kf5 {[%emt 0:00:48]} 49. Kd3 {[%emt 0:00:05]} Ke6 {[%emt 0:00:31]} 50. exf4 {[%emt 0:00:16]} exf4 {[%emt 0:00:07]} 51. Ke4 {[%emt 0:00:03]} Kd6 {[%emt 0:01:17]} 52. Kxf4 {[%emt 0:00:03]} Ke6 {[%emt 0:00:03]} 53. Kg4 {[%emt 0:00:32]} Kf6 {[%emt 0:00:17]} 54. Kxh4 {[%emt 0:00:30]} Kg6 {[%emt 0:00:30]} 55. Kg4 {[%emt 0:00:30]} Kg7 {[%emt 0:00:30]} 56. Kf5 {[%emt 0:00:30]} Kf7 {[%emt 0:00:30]} 57. g4 {[%emt 0:00:30]} Kg7 {[%emt 0:00:30]} 58. g5 {[%emt 0:00:00]} Kh8 {[%emt 0:00:00]} 59. Kf6 {[%emt 0:00:00]} 1-0